Workbook

Sheet Bang_dieu_khien
N1: =BudgetName&" NGÂN SÁCH TƯƠNG TÁC" -> GIA ĐÌNH NGUYỄN VĂN THÀNH 2012 NGÂN SÁCH TƯƠNG TÁC
A3: =du_lieu_bieu_do!C38 -> ₫ 83,200,000
D5: thu nhập
A7: =du_lieu_bieu_do!C39 -> ₫ 123,406,400
D9: chi tiêu
A11: =du_lieu_bieu_do!D40& "₫ "&du_lieu_bieu_do!C40 -> -₫ 40206400
D13: dòng tiền

Sheet Ngan_sach
C1: thg1 | D1: thg2 | E1: thg3 | F1: thg4 | G1: thg5 | H1: thg6 | I1: thg7 | J1: thg8 | K1: thg9 | L1: thg10 | M1: thg11 | N1: thg12 | O1: năm | P1: TB
B5: Số dư Bắt đầu | C5: 20800000
B6: TỔNG THU NHẬP | C6: =SUM(tblIncome[thg1]) -> 87817600 | D6: =SUM(tblIncome[thg2]) -> 187886400 | E6: =SUM(tblIncome[thg3]) -> 83200000 | F6: =SUM(tblIncome[thg4]) -> 84136000 | G6: =SUM(tblIncome[thg5]) -> 187200000 | H6: =SUM(tblIncome[thg6]) -> 31720000 | I6: =SUM(tblIncome[thg7]) -> 31200000 | J6: =SUM(tblIncome[thg8]) -> 135200000 | K6: =SUM(tblIncome[thg9]) -> 83200000 | L6: =SUM(tblIncome[thg10]) -> 83200000 | M6: =SUM(tblIncome[thg11]) -> 187200000 | N6: =SUM(tblIncome[thg12]) -> 83200000 | O6: =SUM(tblIncome[năm]) -> 1265160000 | P6: =O6/12 -> 105430000
B7: Tổng Chi tiêu | C7: =SUM(tblExpenseCategory_01[thg1],tblExpenseCategory_02[thg1],tblExpenseCategory_03[thg1],tblExpenseCategory_04[thg1],tblExpenseCategory_05[thg1],tblExpenseCategory_06[thg1],tblExpenseCategory_07[thg1],tblExpenseCategory_08[thg1],tblExpenseCategory_09[thg1],tblExpenseCategory_10[thg1],tblExpenseCategory_11[thg1],tblExpenseCategory_12[thg1],tblExpenseCategory_13[thg1],tblExpenseCategory_14[thg1],tblExpenseCategory_15[thg1]) -> 165068800 | D7: =SUM(tblExpenseCategory_01[thg2],tblExpenseCategory_02[thg2],tblExpenseCategory_03[thg2],tblExpenseCategory_04[thg2],tblExpenseCategory_05[thg2],tblExpenseCategory_06[thg2],tblExpenseCategory_07[thg2],tblExpenseCategory_08[thg2],tblExpenseCategory_09[thg2],tblExpenseCategory_10[thg2],tblExpenseCategory_11[thg2],tblExpenseCategory_12[thg2],tblExpenseCategory_13[thg2],tblExpenseCategory_14[thg2],tblExpenseCategory_15[thg2]) -> 109054400 | E7: =SUM(tblExpenseCategory_01[thg3],tblExpenseCategory_02[thg3],tblExpenseCategory_03[thg3],tblExpenseCategory_04[thg3],tblExpenseCategory_05[thg3],tblExpenseCategory_06[thg3],tblExpenseCategory_07[thg3],tblExpenseCategory_08[thg3],tblExpenseCategory_09[thg3],tblExpenseCategory_10[thg3],tblExpenseCategory_11[thg3],tblExpenseCategory_12[thg3],tblExpenseCategory_13[thg3],tblExpenseCategory_14[thg3],tblExpenseCategory_15[thg3]) -> 123406400 | F7: =SUM(tblExpenseCategory_01[thg4],tblExpenseCategory_02[thg4],tblExpenseCategory_03[thg4],tblExpenseCategory_04[thg4],tblExpenseCategory_05[thg4],tblExpenseCategory_06[thg4],tblExpenseCategory_07[thg4],tblExpenseCategory_08[thg4],tblExpenseCategory_09[thg4],tblExpenseCategory_10[thg4],tblExpenseCategory_11[thg4],tblExpenseCategory_12[thg4],tblExpenseCategory_13[thg4],tblExpenseCategory_14[thg4],tblExpenseCategory_15[thg4]) -> 121846400 | G7: =SUM(tblExpenseCategory_01[thg5],tblExpenseCategory_02[thg5],tblExpenseCategory_03[thg5],tblExpenseCategory_04[thg5],tblExpenseCategory_05[thg5],tblExpenseCategory_06[thg5],tblExpenseCategory_07[thg5],tblExpenseCategory_08[thg5],tblExpenseCategory_09[thg5],tblExpenseCategory_10[thg5],tblExpenseCategory_11[thg5],tblExpenseCategory_12[thg5],tblExpenseCategory_13[thg5],tblExpenseCategory_14[thg5],tblExpenseCategory_15[thg5]) -> 105414800 | H7: =SUM(tblExpenseCategory_01[thg6],tblExpenseCategory_02[thg6],tblExpenseCategory_03[thg6],tblExpenseCategory_04[thg6],tblExpenseCategory_05[thg6],tblExpenseCategory_06[thg6],tblExpenseCategory_07[thg6],tblExpenseCategory_08[thg6],tblExpenseCategory_09[thg6],tblExpenseCategory_10[thg6],tblExpenseCategory_11[thg6],tblExpenseCategory_12[thg6],tblExpenseCategory_13[thg6],tblExpenseCategory_14[thg6],tblExpenseCategory_15[thg6]) -> 106454400 | I7: =SUM(tblExpenseCategory_01[thg7],tblExpenseCategory_02[thg7],tblExpenseCategory_03[thg7],tblExpenseCategory_04[thg7],tblExpenseCategory_05[thg7],tblExpenseCategory_06[thg7],tblExpenseCategory_07[thg7],tblExpenseCategory_08[thg7],tblExpenseCategory_09[thg7],tblExpenseCategory_10[thg7],tblExpenseCategory_11[thg7],tblExpenseCategory_12[thg7],tblExpenseCategory_13[thg7],tblExpenseCategory_14[thg7],tblExpenseCategory_15[thg7]) -> 119454400 | J7: =SUM(tblExpenseCategory_01[thg8],tblExpenseCategory_02[thg8],tblExpenseCategory_03[thg8],tblExpenseCategory_04[thg8],tblExpenseCategory_05[thg8],tblExpenseCategory_06[thg8],tblExpenseCategory_07[thg8],tblExpenseCategory_08[thg8],tblExpenseCategory_09[thg8],tblExpenseCategory_10[thg8],tblExpenseCategory_11[thg8],tblExpenseCategory_12[thg8],tblExpenseCategory_13[thg8],tblExpenseCategory_14[thg8],tblExpenseCategory_15[thg8]) -> 111342400 | K7: =SUM(tblExpenseCategory_01[thg9],tblExpenseCategory_02[thg9],tblExpenseCategory_03[thg9],tblExpenseCategory_04[thg9],tblExpenseCategory_05[thg9],tblExpenseCategory_06[thg9],tblExpenseCategory_07[thg9],tblExpenseCategory_08[thg9],tblExpenseCategory_09[thg9],tblExpenseCategory_10[thg9],tblExpenseCategory_11[thg9],tblExpenseCategory_12[thg9],tblExpenseCategory_13[thg9],tblExpenseCategory_14[thg9],tblExpenseCategory_15[thg9]) -> 124446400 | L7: =SUM(tblExpenseCategory_01[thg10],tblExpenseCategory_02[thg10],tblExpenseCategory_03[thg10],tblExpenseCategory_04[thg10],tblExpenseCategory_05[thg10],tblExpenseCategory_06[thg10],tblExpenseCategory_07[thg10],tblExpenseCategory_08[thg10],tblExpenseCategory_09[thg10],tblExpenseCategory_10[thg10],tblExpenseCategory_11[thg10],tblExpenseCategory_12[thg10],tblExpenseCategory_13[thg10],tblExpenseCategory_14[thg10],tblExpenseCategory_15[thg10]) -> 123614400 | M7: =SUM(tblExpenseCategory_01[thg11],tblExpenseCategory_02[thg11],tblExpenseCategory_03[thg11],tblExpenseCategory_04[thg11],tblExpenseCategory_05[thg11],tblExpenseCategory_06[thg11],tblExpenseCategory_07[thg11],tblExpenseCategory_08[thg11],tblExpenseCategory_09[thg11],tblExpenseCategory_10[thg11],tblExpenseCategory_11[thg11],tblExpenseCategory_12[thg11],tblExpenseCategory_13[thg11],tblExpenseCategory_14[thg11],tblExpenseCategory_15[thg11]) -> 105206400 | N7: =SUM(tblExpenseCategory_01[thg12],tblExpenseCategory_02[thg12],tblExpenseCategory_03[thg12],tblExpenseCategory_04[thg12],tblExpenseCategory_05[thg12],tblExpenseCategory_06[thg12],tblExpenseCategory_07[thg12],tblExpenseCategory_08[thg12],tblExpenseCategory_09[thg12],tblExpenseCategory_10[thg12],tblExpenseCategory_11[thg12],tblExpenseCategory_12[thg12],tblExpenseCategory_13[thg12],tblExpenseCategory_14[thg12],tblExpenseCategory_15[thg12]) -> 103126400 | O7: =SUM(tblExpenseCategory_01[năm],tblExpenseCategory_02[năm],tblExpenseCategory_03[năm],tblExpenseCategory_04[năm],tblExpenseCategory_05[năm],tblExpenseCategory_06[năm],tblExpenseCategory_07[năm],tblExpenseCategory_08[năm],tblExpenseCategory_09[năm],tblExpenseCategory_10[năm],tblExpenseCategory_11[năm],tblExpenseCategory_12[năm],tblExpenseCategory_13[năm],tblExpenseCategory_14[năm],tblExpenseCategory_15[năm]) -> 1418435600 | P7: =O7/12 -> 118202967
B8: Thu nhập Ròng | C8: =C6-C7 -> -77251200 | D8: =D6-D7 -> 78832000 | E8: -40206400 | F8: -37710400 | G8: 81785200 | H8: -74734400 | I8: -88254400 | J8: 23857600 | K8: -41246400 | L8: -40414400 | M8: 81993600 | N8: -19926400 | O8: -153275600 | P8: =O8/12 -> -12772967
B9: TỔNG DÒNG TIỀN MẶT | C9: =C5+C6-C7 -> -56451200 | D9: =C9+D6-D7 -> 22380800 | E9: =D9+E6-E7 -> -17825600 | F9: -55536000 | G9: 26249200 | H9: -48485200 | I9: -136739600 | J9: -112882000 | K9: -154128400 | L9: -194542800 | M9: -112549200 | N9: -132475600
B12: thu nhập
B13: Lương & tiền thưởng | C13: 83200000 | D13: 83200000 | E13: 83200000 | F13: 83200000 | G13: 83200000 | H13: 20800000 | I13: 20800000 | J13: 20800000 | K13: 83200000 | L13: 83200000 | M13: 83200000 | N13: 83200000 | O13: =SUM(tblIncome[[#This Row],[thg1]:[thg12]]) -> 811200000 | P13: =tblIncome[[#This Row],[năm]]/12 -> 67600000
B14: Thu nhập từ Tiền lãi | C14: 4617600 | D14: 686400 | F14: 936000 | H14: 520000 | O14: =SUM(tblIncome[[#This Row],[thg1]:[thg12]]) -> 6760000 | P14: =tblIncome[[#This Row],[năm]]/12 -> 563333
B15: Cổ tức | D15: 104000000 | G15: 104000000 | J15: 104000000 | M15: 104000000 | O15: =SUM(tblIncome[[#This Row],[thg1]:[thg12]]) -> 416000000 | P15: =tblIncome[[#This Row],[năm]]/12 -> 34666667
B16: hoàn trả/hoàn lại | H16: 10400000 | I16: 10400000 | J16: 10400000 | O16: =SUM(tblIncome[[#This Row],[thg1]:[thg12]]) -> 31200000 | P16: =tblIncome[[#This Row],[năm]]/12 -> 2600000
B17: Khác | O17: =SUM(tblIncome[[#This Row],[thg1]:[thg12]]) -> 0 | P17: =tblIncome[[#This Row],[năm]]/12 -> 0
B18: TỔNG THU NHẬP | C18: =SUM(tblIncome[thg1]) -> 87817600 | D18: =SUM(tblIncome[thg2]) -> 187886400 | E18: =SUM(tblIncome[thg3]) -> 83200000 | F18: =SUM(tblIncome[thg4]) -> 84136000 | G18: =SUM(tblIncome[thg5]) -> 187200000 | H18: =SUM(tblIncome[thg6]) -> 31720000 | I18: =SUM(tblIncome[thg7]) -> 31200000 | J18: =SUM(tblIncome[thg8]) -> 135200000 | K18: =SUM(tblIncome[thg9]) -> 83200000 | L18: =SUM(tblIncome[thg10]) -> 83200000 | M18: =SUM(tblIncome[thg11]) -> 187200000 | N18: =SUM(tblIncome[thg12]) -> 83200000 | O18: =SUM(tblIncome[năm]) -> 1265160000 | P18: =tblIncome[[#Totals],[năm]]/12 -> 105430000
B21: gia đình
B22: Trả góp tiền nhà/Tiền thuê nhà | C22: 17680000 | D22: 17680000 | E22: 17680000 | F22: 17680000 | G22: 17680000 | H22: 17680000 | I22: 17680000 | J22: 17680000 | K22: 17680000 | L22: 17680000 | M22: 18720000 | N22: 18720000 | O22: =SUM(tblExpenseCategory_01[[#This Row],[thg1]:[thg12]]) -> 214240000 | P22: =tblExpenseCategory_01[[#This Row],[năm]]/12 -> 17853333
B23: Điện | C23: 4160000 | D23: 4160000 | E23: 3640000 | F23: 3120000 | G23: 3120000 | H23: 3640000 | I23: 4680000 | J23: 5720000 | K23: 4160000 | L23: 3120000 | M23: 3120000 | N23: 3120000 | O23: =SUM(tblExpenseCategory_01[[#This Row],[thg1]:[thg12]]) -> 45760000 | P23: =tblExpenseCategory_01[[#This Row],[năm]]/12 -> 3813333
B24: Điện thoại | C24: 1040000 | D24: 1040000 | E24: 2080000 | F24: 2080000 | G24: 1040000 | H24: 1040000 | I24: 2080000 | J24: 2080000 | K24: 1040000 | L24: 1040000 | M24: 1040000 | N24: 1040000 | O24: =SUM(tblExpenseCategory_01[[#This Row],[thg1]:[thg12]]) -> 16640000 | P24: =tblExpenseCategory_01[[#This Row],[năm]]/12 -> 1386667
B25: Cáp/Vệ tinh | C25: 1435200 | D25: 1435200 | E25: 1435200 | F25: 1435200 | G25: 1435200 | H25: 1435200 | I25: 1435200 | J25: 1435200 | K25: 1435200 | L25: 1435200 | M25: 1435200 | N25: 1435200 | O25: =SUM(tblExpenseCategory_01[[#This Row],[thg1]:[thg12]]) -> 17222400 | P25: =tblExpenseCategory_01[[#This Row],[năm]]/12 -> 1435200
B26: Internet | C26: 811200 | D26: 811200 | E26: 811200 | F26: 811200 | G26: 811200 | H26: 811200 | I26: 811200 | J26: 811200 | K26: 811200 | L26: 811200 | M26: 811200 | N26: 811200 | O26: =SUM(tblExpenseCategory_01[[#This Row],[thg1]:[thg12]]) -> 9734400 | P26: =tblExpenseCategory_01[[#This Row],[năm]]/12 -> 811200
B27: =UPPER("Tổng cộng " & B21) -> TỔNG CỘNG GIA ĐÌNH | C27: =SUM(tblExpenseCategory_01[thg1]) -> 25126400 | D27: =SUM(tblExpenseCategory_01[thg2]) -> 25126400 | E27: =SUM(tblExpenseCategory_01[thg3]) -> 25646400 | F27: =SUM(tblExpenseCategory_01[thg4]) -> 25126400 | G27: =SUM(tblExpenseCategory_01[thg5]) -> 24086400 | H27: =SUM(tblExpenseCategory_01[thg6]) -> 24606400 | I27: =SUM(tblExpenseCategory_01[thg7]) -> 26686400 | J27: =SUM(tblExpenseCategory_01[thg8]) -> 27726400 | K27: =SUM(tblExpenseCategory_01[thg9]) -> 25126400 | L27: =SUM(tblExpenseCategory_01[thg10]) -> 24086400 | M27: =SUM(tblExpenseCategory_01[thg11]) -> 25126400 | N27: =SUM(tblExpenseCategory_01[thg12]) -> 25126400 | O27: =SUM(tblExpenseCategory_01[năm]) -> 303596800 | P27: =tblExpenseCategory_01[[#Totals],[năm]]/12 -> 25299733
B30: sinh hoạt hàng ngày
B31: Tạp phẩm | C31: 7176000 | D31: 5200000 | E31: 4160000 | F31: 8320000 | G31: 7280000 | H31: 5200000 | I31: 8320000 | J31: 7280000 | K31: 5200000 | L31: 8320000 | M31: 7280000 | N31: 5200000 | O31: =SUM(tblExpenseCategory_02[[#This Row],[thg1]:[thg12]]) -> 78936000 | P31: =tblExpenseCategory_02[[#This Row],[năm]]/12 -> 6578000
B32: Quần áo | C32: 6240000 | F32: 6240000 | I32: 6240000 | L32: 6240000 | O32: =SUM(tblExpenseCategory_02[[#This Row],[thg1]:[thg12]]) -> 24960000 | P32: =tblExpenseCategory_02[[#This Row],[năm]]/12 -> 2080000
B33: Ăn uống/Ăn ngoài | C33: 2600000 | D33: 2600000 | E33: 6240000 | F33: 2600000 | G33: 2600000 | H33: 4160000 | I33: 2600000 | J33: 2600000 | K33: 2600000 | L33: 2600000 | M33: 2600000 | N33: 2600000 | O33: =SUM(tblExpenseCategory_02[[#This Row],[thg1]:[thg12]]) -> 36400000 | P33: =tblExpenseCategory_02[[#This Row],[năm]]/12 -> 3033333
B34: Thẩm mỹ viện/Cắt tóc | C34: 520000 | E34: 1040000 | G34: 520000 | I34: 1040000 | K34: 520000 | M34: 2080000 | O34: =SUM(tblExpenseCategory_02[[#This Row],[thg1]:[thg12]]) -> 5720000 | P34: =tblExpenseCategory_02[[#This Row],[năm]]/12 -> 476667
B35: Khác | O35: =SUM(tblExpenseCategory_02[[#This Row],[thg1]:[thg12]]) -> 0 | P35: =tblExpenseCategory_02[[#This Row],[năm]]/12 -> 0
B36: =UPPER("Tổng cộng " & B30) -> TỔNG CỘNG SINH HOẠT HÀNG NGÀY | C36: =SUM(tblExpenseCategory_02[thg1]) -> 16536000 | D36: =SUM(tblExpenseCategory_02[thg2]) -> 7800000 | E36: =SUM(tblExpenseCategory_02[thg3]) -> 11440000 | F36: =SUM(tblExpenseCategory_02[thg4]) -> 17160000 | G36: =SUM(tblExpenseCategory_02[thg5]) -> 10400000 | H36: =SUM(tblExpenseCategory_02[thg6]) -> 9360000 | I36: =SUM(tblExpenseCategory_02[thg7]) -> 18200000 | J36: =SUM(tblExpenseCategory_02[thg8]) -> 9880000 | K36: =SUM(tblExpenseCategory_02[thg9]) -> 8320000 | L36: =SUM(tblExpenseCategory_02[thg10]) -> 17160000 | M36: =SUM(tblExpenseCategory_02[thg11]) -> 11960000 | N36: =SUM(tblExpenseCategory_02[thg12]) -> 7800000 | O36: =SUM(tblExpenseCategory_02[năm]) -> 146016000 | P36: =tblExpenseCategory_02[[#Totals],[năm]]/12 -> 12168000
B39: con cái
B40: Vật dụng ở trường | C40: 2558400 | E40: 2080000 | J40: 7176000 | O40: =SUM(tblExpenseCategory_03[[#This Row],[thg1]:[thg12]]) -> 11814400 | P40: =tblExpenseCategory_03[[#This Row],[năm]]/12 -> 984533
B41: Quần áo | D41: 2080000 | G41: 2080000 | K41: 2080000 | N41: 2080000 | O41: =SUM(tblExpenseCategory_03[[#This Row],[thg1]:[thg12]]) -> 8320000 | P41: =tblExpenseCategory_03[[#This Row],[năm]]/12 -> 693333
B42: Ăn trưa tại trường | C42: 1040000 | D42: 1040000 | E42: 1040000 | F42: 1040000 | G42: 1040000 | H42: 1040000 | K42: 1040000 | L42: 1040000 | M42: 1040000 | N42: 1040000 | O42: =SUM(tblExpenseCategory_03[[#This Row],[thg1]:[thg12]]) -> 10400000 | P42: =tblExpenseCategory_03[[#This Row],[năm]]/12 -> 866667
B43: Dược phẩm | C43: 4160000 | D43: 4160000 | E43: 4160000 | F43: 4160000 | G43: 4160000 | H43: 4160000 | I43: 4160000 | J43: 4160000 | K43: 4160000 | L43: 4160000 | M43: 4160000 | N43: 4160000 | O43: =SUM(tblExpenseCategory_03[[#This Row],[thg1]:[thg12]]) -> 49920000 | P43: =tblExpenseCategory_03[[#This Row],[năm]]/12 -> 4160000
B44: Khác | C44: 41600000 | D44: 3120000 | H44: 4160000 | L44: 2080000 | O44: =SUM(tblExpenseCategory_03[[#This Row],[thg1]:[thg12]]) -> 50960000 | P44: =tblExpenseCategory_03[[#This Row],[năm]]/12 -> 4246667
B45: =UPPER("Tổng cộng " & B39) -> TỔNG CỘNG CON CÁI | C45: =SUM(tblExpenseCategory_03[thg1]) -> 49358400 | D45: =SUM(tblExpenseCategory_03[thg2]) -> 10400000 | E45: =SUM(tblExpenseCategory_03[thg3]) -> 7280000 | F45: =SUM(tblExpenseCategory_03[thg4]) -> 5200000 | G45: =SUM(tblExpenseCategory_03[thg5]) -> 7280000 | H45: =SUM(tblExpenseCategory_03[thg6]) -> 9360000 | I45: =SUM(tblExpenseCategory_03[thg7]) -> 4160000 | J45: =SUM(tblExpenseCategory_03[thg8]) -> 11336000 | K45: =SUM(tblExpenseCategory_03[thg9]) -> 7280000 | L45: =SUM(tblExpenseCategory_03[thg10]) -> 7280000 | M45: =SUM(tblExpenseCategory_03[thg11]) -> 5200000 | N45: =SUM(tblExpenseCategory_03[thg12]) -> 7280000 | O45: =SUM(tblExpenseCategory_03[năm]) -> 131414400 | P45: =tblExpenseCategory_03[[#Totals],[năm]]/12 -> 10951200
B48: vận chuyển
B49: Thanh toán Tiền xe | C49: 12480000 | D49: 12480000 | E49: 12480000 | F49: 12480000 | G49: 12480000 | H49: 12480000 | I49: 12480000 | J49: 12480000 | K49: 12480000 | L49: 12480000 | M49: 12480000 | N49: 12480000 | O49: =SUM(tblExpenseCategory_04[[#This Row],[thg1]:[thg12]]) -> 149760000 | P49: =tblExpenseCategory_04[[#This Row],[năm]]/12 -> 12480000
B50: Nhiên liệu | C50: 6760000 | D50: 6760000 | E50: 6760000 | F50: 6760000 | G50: 6760000 | H50: 10400000 | I50: 10400000 | J50: 10400000 | K50: 6760000 | L50: 6760000 | M50: 6760000 | N50: 6760000 | O50: =SUM(tblExpenseCategory_04[[#This Row],[thg1]:[thg12]]) -> 92040000 | P50: =tblExpenseCategory_04[[#This Row],[năm]]/12 -> 7670000
B51: Sửa chữa | D51: 2080000 | F51: 2080000 | H51: 2080000 | J51: 2080000 | L51: 2080000 | O51: =SUM(tblExpenseCategory_04[[#This Row],[thg1]:[thg12]]) -> 10400000 | P51: =tblExpenseCategory_04[[#This Row],[năm]]/12 -> 866667
B52: Giấy phép/Đăng ký | C52: 3848000 | K52: 4680000 | O52: =SUM(tblExpenseCategory_04[[#This Row],[thg1]:[thg12]]) -> 8528000 | P52: =tblExpenseCategory_04[[#This Row],[năm]]/12 -> 710667
B53: Khác | G53: 400 | O53: =SUM(tblExpenseCategory_04[[#This Row],[thg1]:[thg12]]) -> 400 | P53: =tblExpenseCategory_04[[#This Row],[năm]]/12 -> 33
B54: =UPPER("Tổng cộng " & B48) -> TỔNG CỘNG VẬN CHUYỂN | C54: =SUM(tblExpenseCategory_04[thg1]) -> 23088000 | D54: =SUM(tblExpenseCategory_04[thg2]) -> 21320000 | E54: =SUM(tblExpenseCategory_04[thg3]) -> 19240000 | F54: =SUM(tblExpenseCategory_04[thg4]) -> 21320000 | G54: =SUM(tblExpenseCategory_04[thg5]) -> 19240400 | H54: =SUM(tblExpenseCategory_04[thg6]) -> 24960000 | I54: =SUM(tblExpenseCategory_04[thg7]) -> 22880000 | J54: =SUM(tblExpenseCategory_04[thg8]) -> 24960000 | K54: =SUM(tblExpenseCategory_04[thg9]) -> 23920000 | L54: =SUM(tblExpenseCategory_04[thg10]) -> 21320000 | M54: =SUM(tblExpenseCategory_04[thg11]) -> 19240000 | N54: =SUM(tblExpenseCategory_04[thg12]) -> 19240000 | O54: =SUM(tblExpenseCategory_04[năm]) -> 260728400 | P54: =tblExpenseCategory_04[[#Totals],[năm]]/12 -> 21727367
B57: Sức khỏe
B58: Bác sĩ/Nha sĩ | D58: 728000 | G58: 728000 | H58: 728000 | I58: 728000 | L58: 728000 | O58: =SUM(tblExpenseCategory_05[[#This Row],[thg1]:[thg12]]) -> 3640000 | P58: =tblExpenseCategory_05[[#This Row],[năm]]/12 -> 303333
B59: Thuốc/Dược phẩm | C59: 520000 | D59: 520000 | E59: 520000 | F59: 520000 | G59: 520000 | H59: 520000 | I59: 520000 | J59: 520000 | K59: 520000 | L59: 520000 | M59: 520000 | N59: 520000 | O59: =SUM(tblExpenseCategory_05[[#This Row],[thg1]:[thg12]]) -> 6240000 | P59: =tblExpenseCategory_05[[#This Row],[năm]]/12 -> 520000
B60: Khác | E60: 3120000 | K60: 3120000 | O60: =SUM(tblExpenseCategory_05[[#This Row],[thg1]:[thg12]]) -> 6240000 | P60: =tblExpenseCategory_05[[#This Row],[năm]]/12 -> 520000
B61: =UPPER("Tổng cộng " & B57) -> TỔNG CỘNG SỨC KHỎE | C61: =SUM(tblExpenseCategory_05[thg1]) -> 520000 | D61: =SUM(tblExpenseCategory_05[thg2]) -> 1248000 | E61: =SUM(tblExpenseCategory_05[thg3]) -> 3640000 | F61: =SUM(tblExpenseCategory_05[thg4]) -> 520000 | G61: =SUM(tblExpenseCategory_05[thg5]) -> 1248000 | H61: =SUM(tblExpenseCategory_05[thg6]) -> 1248000 | I61: =SUM(tblExpenseCategory_05[thg7]) -> 1248000 | J61: =SUM(tblExpenseCategory_05[thg8]) -> 520000 | K61: =SUM(tblExpenseCategory_05[thg9]) -> 3640000 | L61: =SUM(tblExpenseCategory_05[thg10]) -> 1248000 | M61: =SUM(tblExpenseCategory_05[thg11]) -> 520000 | N61: =SUM(tblExpenseCategory_05[thg12]) -> 520000 | O61: =SUM(tblExpenseCategory_05[năm]) -> 16120000 | P61: =tblExpenseCategory_05[[#Totals],[năm]]/12 -> 1343333
B64: bảo hiểm
B65: Ô tô | C65: 3120000 | D65: 3120000 | E65: 3120000 | F65: 3120000 | G65: 3120000 | H65: 3120000 | I65: 3120000 | J65: 3120000 | K65: 3120000 | L65: 3120000 | M65: 3120000 | N65: 3120000 | O65: =SUM(tblExpenseCategory_06[[#This Row],[thg1]:[thg12]]) -> 37440000 | P65: =tblExpenseCategory_06[[#This Row],[năm]]/12 -> 3120000
B66: Sức khỏe | C66: 14040000 | D66: 14040000 | E66: 14040000 | F66: 14040000 | G66: 14040000 | H66: 14040000 | I66: 14040000 | J66: 14040000 | K66: 14040000 | L66: 14040000 | M66: 14040000 | N66: 14040000 | O66: =SUM(tblExpenseCategory_06[[#This Row],[thg1]:[thg12]]) -> 168480000 | P66: =tblExpenseCategory_06[[#This Row],[năm]]/12 -> 14040000
B67: Đời sống | C67: 3120000 | D67: 3120000 | E67: 3120000 | F67: 3120000 | G67: 3120000 | H67: 3120000 | I67: 3120000 | J67: 3120000 | K67: 3120000 | L67: 3120000 | M67: 3120000 | N67: 3120000 | O67: =SUM(tblExpenseCategory_06[[#This Row],[thg1]:[thg12]]) -> 37440000 | P67: =tblExpenseCategory_06[[#This Row],[năm]]/12 -> 3120000
B68: =UPPER("Tổng cộng " & B64) -> TỔNG CỘNG BẢO HIỂM | C68: =SUM(tblExpenseCategory_06[thg1]) -> 20280000 | D68: =SUM(tblExpenseCategory_06[thg2]) -> 20280000 | E68: =SUM(tblExpenseCategory_06[thg3]) -> 20280000 | F68: =SUM(tblExpenseCategory_06[thg4]) -> 20280000 | G68: =SUM(tblExpenseCategory_06[thg5]) -> 20280000 | H68: =SUM(tblExpenseCategory_06[thg6]) -> 20280000 | I68: =SUM(tblExpenseCategory_06[thg7]) -> 20280000 | J68: =SUM(tblExpenseCategory_06[thg8]) -> 20280000 | K68: =SUM(tblExpenseCategory_06[thg9]) -> 20280000 | L68: =SUM(tblExpenseCategory_06[thg10]) -> 20280000 | M68: =SUM(tblExpenseCategory_06[thg11]) -> 20280000 | N68: =SUM(tblExpenseCategory_06[thg12]) -> 20280000 | O68: =SUM(tblExpenseCategory_06[năm]) -> 243360000 | P68: =tblExpenseCategory_06[[#Totals],[năm]]/12 -> 20280000
B71: giáo dục
B72: Học thêm | E72: 8320000 | K72: 8320000 | N72: thg12 | O72: =SUM(tblExpenseCategory_07[[#This Row],[thg1]:[thg12]]) -> 16640000 | P72: =tblExpenseCategory_07[[#This Row],[năm]]/12 -> 1386667
B73: Sách | E73: 4680000 | K73: 4680000 | O73: =SUM(tblExpenseCategory_07[[#This Row],[thg1]:[thg12]]) -> 9360000 | P73: =tblExpenseCategory_07[[#This Row],[năm]]/12 -> 780000
B74: Khác | O74: =SUM(tblExpenseCategory_07[[#This Row],[thg1]:[thg12]]) -> 0 | P74: =tblExpenseCategory_07[[#This Row],[năm]]/12 -> 0
B75: =UPPER("Tổng cộng " & B71) -> TỔNG CỘNG GIÁO DỤC | C75: =SUM(tblExpenseCategory_07[thg1]) -> 0 | D75: =SUM(tblExpenseCategory_07[thg2]) -> 0 | E75: =SUM(tblExpenseCategory_07[thg3]) -> 13000000 | F75: =SUM(tblExpenseCategory_07[thg4]) -> 0 | G75: =SUM(tblExpenseCategory_07[thg5]) -> 0 | H75: =SUM(tblExpenseCategory_07[thg6]) -> 0 | I75: =SUM(tblExpenseCategory_07[thg7]) -> 0 | J75: =SUM(tblExpenseCategory_07[thg8]) -> 0 | K75: =SUM(tblExpenseCategory_07[thg9]) -> 13000000 | L75: =SUM(tblExpenseCategory_07[thg10]) -> 0 | M75: =SUM(tblExpenseCategory_07[thg11]) -> 0 | N75: =SUM(tblExpenseCategory_07[thg12]) -> 0 | O75: =SUM(tblExpenseCategory_07[năm]) -> 26000000 | P75: =tblExpenseCategory_07[[#Totals],[năm]]/12 -> 2166667
B78: từ thiện
B79: Quà tặng | D79: 2080000 | H79: 2080000 | L79: 2080000 | O79: =SUM(tblExpenseCategory_08[[#This Row],[thg1]:[thg12]]) -> 6240000 | P79: =tblExpenseCategory_08[[#This Row],[năm]]/12 -> 520000
B80: Quyên góp Từ thiện | E80: 2080000 | G80: 2080000 | I80: 2080000 | K80: 2080000 | M80: 2080000 | O80: =SUM(tblExpenseCategory_08[[#This Row],[thg1]:[thg12]]) -> 10400000 | P80: =tblExpenseCategory_08[[#This Row],[năm]]/12 -> 866667
B81: Khác | F81: 2080000 | J81: 2080000 | N81: 2080000 | O81: =SUM(tblExpenseCategory_08[[#This Row],[thg1]:[thg12]]) -> 6240000 | P81: =tblExpenseCategory_08[[#This Row],[năm]]/12 -> 520000
B82: =UPPER("Tổng cộng " & B78) -> TỔNG CỘNG TỪ THIỆN | C82: =SUM(tblExpenseCategory_08[thg1]) -> 0 | D82: =SUM(tblExpenseCategory_08[thg2]) -> 2080000 | E82: =SUM(tblExpenseCategory_08[thg3]) -> 2080000 | F82: =SUM(tblExpenseCategory_08[thg4]) -> 2080000 | G82: =SUM(tblExpenseCategory_08[thg5]) -> 2080000 | H82: =SUM(tblExpenseCategory_08[thg6]) -> 2080000 | I82: =SUM(tblExpenseCategory_08[thg7]) -> 2080000 | J82: =SUM(tblExpenseCategory_08[thg8]) -> 2080000 | K82: =SUM(tblExpenseCategory_08[thg9]) -> 2080000 | L82: =SUM(tblExpenseCategory_08[thg10]) -> 2080000 | M82: =SUM(tblExpenseCategory_08[thg11]) -> 2080000 | N82: =SUM(tblExpenseCategory_08[thg12]) -> 2080000 | O82: =SUM(tblExpenseCategory_08[năm]) -> 22880000 | P82: =tblExpenseCategory_08[[#Totals],[năm]]/12 -> 1906667
B85: tiết kiệm
B86: Quỹ Khẩn cấp | C86: 2080000 | D86: 2080000 | E86: 2080000 | F86: 2080000 | G86: 2080000 | K86: 2080000 | L86: 2080000 | M86: 2080000 | N86: 2080000 | O86: =SUM(tblExpenseCategory_09[[#This Row],[thg1]:[thg12]]) -> 18720000 | P86: =tblExpenseCategory_09[[#This Row],[năm]]/12 -> 1560000
B87: Nghỉ hưu (401k, IRA) | C87: 10400000 | D87: 10400000 | E87: 10400000 | F87: 10400000 | G87: 10400000 | H87: 10400000 | I87: 10400000 | J87: 10400000 | K87: 10400000 | L87: 10400000 | M87: 10400000 | N87: 10400000 | O87: =SUM(tblExpenseCategory_09[[#This Row],[thg1]:[thg12]]) -> 124800000 | P87: =tblExpenseCategory_09[[#This Row],[năm]]/12 -> 10400000
B88: Chuyển vào Tiết kiệm | C88: 4160000 | D88: 4160000 | E88: 4160000 | F88: 4160000 | G88: 4160000 | K88: 4160000 | L88: 4160000 | M88: 4160000 | N88: 4160000 | O88: =SUM(tblExpenseCategory_09[[#This Row],[thg1]:[thg12]]) -> 37440000 | P88: =tblExpenseCategory_09[[#This Row],[năm]]/12 -> 3120000
B89: =UPPER("Tổng cộng " & B85) -> TỔNG CỘNG TIẾT KIỆM | C89: =SUM(tblExpenseCategory_09[thg1]) -> 16640000 | D89: =SUM(tblExpenseCategory_09[thg2]) -> 16640000 | E89: =SUM(tblExpenseCategory_09[thg3]) -> 16640000 | F89: =SUM(tblExpenseCategory_09[thg4]) -> 16640000 | G89: =SUM(tblExpenseCategory_09[thg5]) -> 16640000 | H89: =SUM(tblExpenseCategory_09[thg6]) -> 10400000 | I89: =SUM(tblExpenseCategory_09[thg7]) -> 10400000 | J89: =SUM(tblExpenseCategory_09[thg8]) -> 10400000 | K89: =SUM(tblExpenseCategory_09[thg9]) -> 16640000 | L89: =SUM(tblExpenseCategory_09[thg10]) -> 16640000 | M89: =SUM(tblExpenseCategory_09[thg11]) -> 16640000 | N89: =SUM(tblExpenseCategory_09[thg12]) -> 16640000 | O89: =SUM(tblExpenseCategory_09[năm]) -> 180960000 | P89: =tblExpenseCategory_09[[#Totals],[năm]]/12 -> 15080000
B92: nghĩa vụ
B93: Thẻ Tín dụng #1 | C93: 3016000 | D93: 3016000 | E93: 3016000 | F93: 3016000 | G93: 3016000 | H93: 3016000 | I93: 3016000 | J93: 3016000 | K93: 3016000 | L93: 3016000 | M93: 3016000 | N93: 3016000 | O93: =SUM(tblExpenseCategory_10[[#This Row],[thg1]:[thg12]]) -> 36192000 | P93: =tblExpenseCategory_10[[#This Row],[năm]]/12 -> 3016000
B94: Thuế Liên bang | C94: 9360000 | F94: 9360000 | I94: 9360000 | L94: 9360000 | O94: =SUM(tblExpenseCategory_10[[#This Row],[thg1]:[thg12]]) -> 37440000 | P94: =tblExpenseCategory_10[[#This Row],[năm]]/12 -> 3120000
B95: Khoản vay học Đại học | C95: 1144000 | D95: 1144000 | E95: 1144000 | F95: 1144000 | G95: 1144000 | H95: 1144000 | I95: 1144000 | J95: 1144000 | K95: 1144000 | L95: 1144000 | M95: 1144000 | N95: 1144000 | O95: =SUM(tblExpenseCategory_10[[#This Row],[thg1]:[thg12]]) -> 13728000 | P95: =tblExpenseCategory_10[[#This Row],[năm]]/12 -> 1144000
B96: =UPPER("Tổng cộng " & B92) -> TỔNG CỘNG NGHĨA VỤ | C96: =SUM(tblExpenseCategory_10[thg1]) -> 13520000 | D96: =SUM(tblExpenseCategory_10[thg2]) -> 4160000 | E96: =SUM(tblExpenseCategory_10[thg3]) -> 4160000 | F96: =SUM(tblExpenseCategory_10[thg4]) -> 13520000 | G96: =SUM(tblExpenseCategory_10[thg5]) -> 4160000 | H96: =SUM(tblExpenseCategory_10[thg6]) -> 4160000 | I96: =SUM(tblExpenseCategory_10[thg7]) -> 13520000 | J96: =SUM(tblExpenseCategory_10[thg8]) -> 4160000 | K96: =SUM(tblExpenseCategory_10[thg9]) -> 4160000 | L96: =SUM(tblExpenseCategory_10[thg10]) -> 13520000 | M96: =SUM(tblExpenseCategory_10[thg11]) -> 4160000 | N96: =SUM(tblExpenseCategory_10[thg12]) -> 4160000 | O96: =SUM(tblExpenseCategory_10[năm]) -> 87360000 | P96: =tblExpenseCategory_10[[#Totals],[năm]]/12 -> 7280000
O101: =SUM(tblExpenseCategory_11[[#This Row],[thg1]:[thg12]]) -> 0 | P101: =tblExpenseCategory_11[[#This Row],[năm]]/12 -> 0
O102: =SUM(tblExpenseCategory_11[[#This Row],[thg1]:[thg12]]) -> 0 | P102: =tblExpenseCategory_11[[#This Row],[năm]]/12 -> 0
O103: =SUM(tblExpenseCategory_11[[#This Row],[thg1]:[thg12]]) -> 0 | P103: =tblExpenseCategory_11[[#This Row],[năm]]/12 -> 0
B104: =UPPER("Tổng cộng " & B99) -> TỔNG CỘNG | C104: =SUM(tblExpenseCategory_11[thg1]) -> 0 | D104: =SUM(tblExpenseCategory_11[thg2]) -> 0 | E104: =SUM(tblExpenseCategory_11[thg3]) -> 0 | F104: =SUM(tblExpenseCategory_11[thg4]) -> 0 | G104: =SUM(tblExpenseCategory_11[thg5]) -> 0 | H104: =SUM(tblExpenseCategory_11[thg6]) -> 0 | I104: =SUM(tblExpenseCategory_11[thg7]) -> 0 | J104: =SUM(tblExpenseCategory_11[thg8]) -> 0 | K104: =SUM(tblExpenseCategory_11[thg9]) -> 0 | L104: =SUM(tblExpenseCategory_11[thg10]) -> 0 | M104: =SUM(tblExpenseCategory_11[thg11]) -> 0 | N104: =SUM(tblExpenseCategory_11[thg12]) -> 0 | O104: =SUM(tblExpenseCategory_11[năm]) -> 0 | P104: =tblExpenseCategory_11[[#Totals],[năm]]/12 -> 0
O108: =SUM(tblExpenseCategory_12[[#This Row],[thg1]:[thg12]]) -> 0 | P108: =tblExpenseCategory_12[[#This Row],[năm]]/12 -> 0
O109: =SUM(tblExpenseCategory_12[[#This Row],[thg1]:[thg12]]) -> 0 | P109: =tblExpenseCategory_12[[#This Row],[năm]]/12 -> 0
O110: =SUM(tblExpenseCategory_12[[#This Row],[thg1]:[thg12]]) -> 0 | P110: =tblExpenseCategory_12[[#This Row],[năm]]/12 -> 0
B111: =UPPER("Tổng cộng " & B107) -> TỔNG CỘNG | C111: =SUM(tblExpenseCategory_12[thg1]) -> 0 | D111: =SUM(tblExpenseCategory_12[thg2]) -> 0 | E111: =SUM(tblExpenseCategory_12[thg3]) -> 0 | F111: =SUM(tblExpenseCategory_12[thg4]) -> 0 | G111: =SUM(tblExpenseCategory_12[thg5]) -> 0 | H111: =SUM(tblExpenseCategory_12[thg6]) -> 0 | I111: =SUM(tblExpenseCategory_12[thg7]) -> 0 | J111: =SUM(tblExpenseCategory_12[thg8]) -> 0 | K111: =SUM(tblExpenseCategory_12[thg9]) -> 0 | L111: =SUM(tblExpenseCategory_12[thg10]) -> 0 | M111: =SUM(tblExpenseCategory_12[thg11]) -> 0 | N111: =SUM(tblExpenseCategory_12[thg12]) -> 0 | O111: =SUM(tblExpenseCategory_12[năm]) -> 0 | P111: =tblExpenseCategory_12[[#Totals],[năm]]/12 -> 0
O115: =SUM(tblExpenseCategory_13[[#This Row],[thg1]:[thg12]]) -> 0 | P115: =tblExpenseCategory_13[[#This Row],[năm]]/12 -> 0
O116: =SUM(tblExpenseCategory_13[[#This Row],[thg1]:[thg12]]) -> 0 | P116: =tblExpenseCategory_13[[#This Row],[năm]]/12 -> 0
O117: =SUM(tblExpenseCategory_13[[#This Row],[thg1]:[thg12]]) -> 0 | P117: =tblExpenseCategory_13[[#This Row],[năm]]/12 -> 0
B118: =UPPER("Tổng cộng " & B114) -> TỔNG CỘNG | C118: =SUM(tblExpenseCategory_13[thg1]) -> 0 | D118: =SUM(tblExpenseCategory_13[thg2]) -> 0 | E118: =SUM(tblExpenseCategory_13[thg3]) -> 0 | F118: =SUM(tblExpenseCategory_13[thg4]) -> 0 | G118: =SUM(tblExpenseCategory_13[thg5]) -> 0 | H118: =SUM(tblExpenseCategory_13[thg6]) -> 0 | I118: =SUM(tblExpenseCategory_13[thg7]) -> 0 | J118: =SUM(tblExpenseCategory_13[thg8]) -> 0 | K118: =SUM(tblExpenseCategory_13[thg9]) -> 0 | L118: =SUM(tblExpenseCategory_13[thg10]) -> 0 | M118: =SUM(tblExpenseCategory_13[thg11]) -> 0 | N118: =SUM(tblExpenseCategory_13[thg12]) -> 0 | O118: =SUM(tblExpenseCategory_13[năm]) -> 0 | P118: =tblExpenseCategory_13[[#Totals],[năm]]/12 -> 0
O123: =SUM(tblExpenseCategory_14[[#This Row],[thg1]:[thg12]]) -> 0 | P123: =tblExpenseCategory_14[[#This Row],[năm]]/12 -> 0
O124: =SUM(tblExpenseCategory_14[[#This Row],[thg1]:[thg12]]) -> 0 | P124: =tblExpenseCategory_14[[#This Row],[năm]]/12 -> 0
O125: =SUM(tblExpenseCategory_14[[#This Row],[thg1]:[thg12]]) -> 0 | P125: =tblExpenseCategory_14[[#This Row],[năm]]/12 -> 0
B126: =UPPER("Tổng cộng " & B121) -> TỔNG CỘNG | C126: =SUM(tblExpenseCategory_14[thg1]) -> 0 | D126: =SUM(tblExpenseCategory_14[thg2]) -> 0 | E126: =SUM(tblExpenseCategory_14[thg3]) -> 0 | F126: =SUM(tblExpenseCategory_14[thg4]) -> 0 | G126: =SUM(tblExpenseCategory_14[thg5]) -> 0 | H126: =SUM(tblExpenseCategory_14[thg6]) -> 0 | I126: =SUM(tblExpenseCategory_14[thg7]) -> 0 | J126: =SUM(tblExpenseCategory_14[thg8]) -> 0 | K126: =SUM(tblExpenseCategory_14[thg9]) -> 0 | L126: =SUM(tblExpenseCategory_14[thg10]) -> 0 | M126: =SUM(tblExpenseCategory_14[thg11]) -> 0 | N126: =SUM(tblExpenseCategory_14[thg12]) -> 0 | O126: =SUM(tblExpenseCategory_14[năm]) -> 0 | P126: =tblExpenseCategory_14[[#Totals],[năm]]/12 -> 0
O130: =SUM(tblExpenseCategory_15[[#This Row],[thg1]:[thg12]]) -> 0 | P130: =tblExpenseCategory_15[[#This Row],[năm]]/12 -> 0
O131: =SUM(tblExpenseCategory_15[[#This Row],[thg1]:[thg12]]) -> 0 | P131: =tblExpenseCategory_15[[#This Row],[năm]]/12 -> 0
O132: =SUM(tblExpenseCategory_15[[#This Row],[thg1]:[thg12]]) -> 0 | P132: =tblExpenseCategory_15[[#This Row],[năm]]/12 -> 0
B133: =UPPER("Tổng cộng " & B129) -> TỔNG CỘNG | C133: =SUM(tblExpenseCategory_15[thg1]) -> 0 | D133: =SUM(tblExpenseCategory_15[thg2]) -> 0 | E133: =SUM(tblExpenseCategory_15[thg3]) -> 0 | F133: =SUM(tblExpenseCategory_15[thg4]) -> 0 | G133: =SUM(tblExpenseCategory_15[thg5]) -> 0 | H133: =SUM(tblExpenseCategory_15[thg6]) -> 0 | I133: =SUM(tblExpenseCategory_15[thg7]) -> 0 | J133: =SUM(tblExpenseCategory_15[thg8]) -> 0 | K133: =SUM(tblExpenseCategory_15[thg9]) -> 0 | L133: =SUM(tblExpenseCategory_15[thg10]) -> 0 | M133: =SUM(tblExpenseCategory_15[thg11]) -> 0 | N133: =SUM(tblExpenseCategory_15[thg12]) -> 0 | O133: =SUM(tblExpenseCategory_15[năm]) -> 0 | P133: =tblExpenseCategory_15[[#Totals],[năm]]/12 -> 0

Sheet Thiet_lap
B1: GIA ĐÌNH NGUYỄN VĂN THÀNH 2012
B2: thu nhập | D2: chi tiêu
B3: lương & tiền thưởng
B4: Thu nhập từ tiền lãi | D4: gia đình | F4: gia đình | H4: sinh hoạt hàng ngày | J4: con cái
B5: Cổ tức | D5: sinh hoạt hàng ngày | F5: trả góp tiền nhà/tiền thuê nhà | H5: tạp phẩm | J5: dược phẩm
B6: quà tặng đã nhận | D6: con cái | F6: điện | H6: vật dụng cá nhân | J6: quần áo
B7: hoàn trả/hoàn lại | D7: vận chuyển | F7: xăng/dầu | H7: quần áo | J7: học phí
B8: chuyển từ tiết kiệm | D8: Sức khỏe | F8: nước/nước thải/rác | H8: dịch vụ lau dọn | J8: ăn trưa ở trường
B9: khác | D9: bảo hiểm | F9: ĐIỆN THOẠI | H9: ăn uống/ăn ngoài | J9: vật dụng ở trường
D10: giáo dục | F10: cáp/vệ tinh | H10: giặt khô | J10: giữ em bé
D11: từ thiện | F11: internet | H11: thẩm mỹ viện/cắt tóc | J11: đồ chơi/trò chơi
D12: tiết kiệm | F12: đồ đạc/đồ gia dụng | H12: khác | J12: khác
D13: nghĩa vụ | F13: bãi cỏ/vườn
D14: giải trí | F14: vật dụng dùng ở nhà
D15: thú cưng | F15: bảo trì
D16: thuê bao | F16: nâng cấp
D17: nghỉ mát | F17: khác
D18: khác
F20: vận chuyển | H20: Sức khỏe | J20: bảo hiểm
F21: thanh toán tiền xe | H21: bác sĩ/nha sĩ | J21: ô tô
F22: nhiên liệu | H22: thuốc/dược phẩm | J22: Sức khỏe
F23: phí xe buýt/taxi/tàu | H23: phí câu lạc bộ thể thao | J23: tiền nhà/thuê nhà
F24: sửa chữa | H24: khẩn cấp | J24: đời sống
F25: giấy phép/đăng ký | H25: khác | J25: khác
F26: khác
F29: giáo dục | H29: từ thiện | J29: tiết kiệm
F30: học phí | H30: quà tặng | J30: quỹ khẩn cấp
F31: sách | H31: quyên góp từ thiện | J31: chuyển vào tiết kiệm
F32: học nhạc | H32: quyên góp cho tôn giáo | J32: nghỉ hưu (401k, ira)
F33: khác | H33: khác | J33: đầu tư
J34: đại học
J35: khác
F38: nghĩa vụ | H38: giải trí | J38: thú cưng
F39: vay học đại học | H39: video/dvd | J39: thực phẩm
F40: khoản vay khác | H40: âm nhạc | J40: dược phẩm
F41: thẻ tín dụng #1 | H41: trò chơi | J41: đồ chơi/vật dụng
F42: thẻ tín dụng #2 | H42: phí thuê mướn | J42: khác
F43: thẻ tín dụng #3 | H43: phim/nhà hát
F44: hỗ trợ nuôi con/cấp dưỡng | H44: hòa nhạc/kịch
F45: thuế liên bang | H45: sách
F46: thuế nhà đất | H46: sở thích
F47: thuế địa phương/thuế bang | H47: phim/chụp ảnh
F48: phí hiệp hội người sở hữu nhà | H48: thể thao
F49: phí pháp lý | H49: hoạt động giải trí ngoài trời
F50: khác | H50: đồ chơi/vật dụng
H51: khác
F53: thuê bao | H53: nghỉ mát | J53: khác
F54: báo chí | H54: vận chuyển | J54: phí ngân hàng
F55: tạp chí | H55: nhà trọ | J55: bưu phí
F56: tiền phải trả | H56: thực phẩm | J56: khác
F57: thẻ thành viên câu lạc bộ | H57: thuê xe hơi
F58: khác | H58: giải trí
H59: khác

Sheet du_lieu_bieu_do (hidden)
B1: *** Nên để ẩn trang tính này ***
B4: Giai đoạn | C4: 3
C6: thg1 | D6: thg2 | E6: thg3 | F6: thg4 | G6: thg5 | H6: thg6 | I6: thg7 | J6: thg8 | K6: thg9 | L6: thg10 | M6: thg11 | N6: thg12 | O6: năm | P6: TB
B7: =LOWER(Ngan_sach!B129) ->  | C7: =SUM(tblExpenseCategory_15[thg1]) -> 0 | D7: =SUM(tblExpenseCategory_15[thg2]) -> 0 | E7: =SUM(tblExpenseCategory_15[thg3]) -> 0 | F7: =SUM(tblExpenseCategory_15[thg4]) -> 0 | G7: =SUM(tblExpenseCategory_15[thg5]) -> 0 | H7: =SUM(tblExpenseCategory_15[thg6]) -> 0 | I7: =SUM(tblExpenseCategory_15[thg7]) -> 0 | J7: =SUM(tblExpenseCategory_15[thg8]) -> 0 | K7: =SUM(tblExpenseCategory_15[thg9]) -> 0 | L7: =SUM(tblExpenseCategory_15[thg10]) -> 0 | M7: =SUM(tblExpenseCategory_15[thg11]) -> 0 | N7: =SUM(tblExpenseCategory_15[thg12]) -> 0 | O7: =SUM(tblExpenseCategory_15[năm]) -> 0 | P7: =SUM(tblExpenseCategory_15[TB]) -> 0
B8: =LOWER(Ngan_sach!B121) ->  | C8: =SUM(tblExpenseCategory_14[thg1]) -> 0 | D8: =SUM(tblExpenseCategory_14[thg2]) -> 0 | E8: =SUM(tblExpenseCategory_14[thg3]) -> 0 | F8: =SUM(tblExpenseCategory_14[thg4]) -> 0 | G8: =SUM(tblExpenseCategory_14[thg5]) -> 0 | H8: =SUM(tblExpenseCategory_14[thg6]) -> 0 | I8: =SUM(tblExpenseCategory_14[thg7]) -> 0 | J8: =SUM(tblExpenseCategory_14[thg8]) -> 0 | K8: =SUM(tblExpenseCategory_14[thg9]) -> 0 | L8: =SUM(tblExpenseCategory_14[thg10]) -> 0 | M8: =SUM(tblExpenseCategory_14[thg11]) -> 0 | N8: =SUM(tblExpenseCategory_14[thg12]) -> 0 | O8: =SUM(tblExpenseCategory_14[năm]) -> 0 | P8: =SUM(tblExpenseCategory_14[TB]) -> 0
B9: =LOWER(Ngan_sach!B114) ->  | C9: =SUM(tblExpenseCategory_13[thg1]) -> 0 | D9: =SUM(tblExpenseCategory_13[thg2]) -> 0 | E9: =SUM(tblExpenseCategory_13[thg3]) -> 0 | F9: =SUM(tblExpenseCategory_13[thg4]) -> 0 | G9: =SUM(tblExpenseCategory_13[thg5]) -> 0 | H9: =SUM(tblExpenseCategory_13[thg6]) -> 0 | I9: =SUM(tblExpenseCategory_13[thg7]) -> 0 | J9: =SUM(tblExpenseCategory_13[thg8]) -> 0 | K9: =SUM(tblExpenseCategory_13[thg9]) -> 0 | L9: =SUM(tblExpenseCategory_13[thg10]) -> 0 | M9: =SUM(tblExpenseCategory_13[thg11]) -> 0 | N9: =SUM(tblExpenseCategory_13[thg12]) -> 0 | O9: =SUM(tblExpenseCategory_13[năm]) -> 0 | P9: =SUM(tblExpenseCategory_13[TB]) -> 0
B10: =LOWER(Ngan_sach!B107) ->  | C10: =SUM(tblExpenseCategory_12[thg1]) -> 0 | D10: =SUM(tblExpenseCategory_12[thg2]) -> 0 | E10: =SUM(tblExpenseCategory_12[thg3]) -> 0 | F10: =SUM(tblExpenseCategory_12[thg4]) -> 0 | G10: =SUM(tblExpenseCategory_12[thg5]) -> 0 | H10: =SUM(tblExpenseCategory_12[thg6]) -> 0 | I10: =SUM(tblExpenseCategory_12[thg7]) -> 0 | J10: =SUM(tblExpenseCategory_12[thg8]) -> 0 | K10: =SUM(tblExpenseCategory_12[thg9]) -> 0 | L10: =SUM(tblExpenseCategory_12[thg10]) -> 0 | M10: =SUM(tblExpenseCategory_12[thg11]) -> 0 | N10: =SUM(tblExpenseCategory_12[thg12]) -> 0 | O10: =SUM(tblExpenseCategory_12[năm]) -> 0 | P10: =SUM(tblExpenseCategory_12[TB]) -> 0
B11: =LOWER(Ngan_sach!B99) ->  | C11: =SUM(tblExpenseCategory_11[thg1]) -> 0 | D11: =SUM(tblExpenseCategory_11[thg2]) -> 0 | E11: =SUM(tblExpenseCategory_11[thg3]) -> 0 | F11: =SUM(tblExpenseCategory_11[thg4]) -> 0 | G11: =SUM(tblExpenseCategory_11[thg5]) -> 0 | H11: =SUM(tblExpenseCategory_11[thg6]) -> 0 | I11: =SUM(tblExpenseCategory_11[thg7]) -> 0 | J11: =SUM(tblExpenseCategory_11[thg8]) -> 0 | K11: =SUM(tblExpenseCategory_11[thg9]) -> 0 | L11: =SUM(tblExpenseCategory_11[thg10]) -> 0 | M11: =SUM(tblExpenseCategory_11[thg11]) -> 0 | N11: =SUM(tblExpenseCategory_11[thg12]) -> 0 | O11: =SUM(tblExpenseCategory_11[năm]) -> 0 | P11: =SUM(tblExpenseCategory_11[TB]) -> 0
B12: =LOWER(Ngan_sach!B92) -> nghĩa vụ | C12: =SUM(tblExpenseCategory_10[thg1]) -> 13,520,000 | D12: =SUM(tblExpenseCategory_10[thg2]) -> 4,160,000 | E12: =SUM(tblExpenseCategory_10[thg3]) -> 4,160,000 | F12: =SUM(tblExpenseCategory_10[thg4]) -> 13,520,000 | G12: =SUM(tblExpenseCategory_10[thg5]) -> 4,160,000 | H12: =SUM(tblExpenseCategory_10[thg6]) -> 4,160,000 | I12: =SUM(tblExpenseCategory_10[thg7]) -> 13,520,000 | J12: =SUM(tblExpenseCategory_10[thg8]) -> 4,160,000 | K12: =SUM(tblExpenseCategory_10[thg9]) -> 4,160,000 | L12: =SUM(tblExpenseCategory_10[thg10]) -> 13,520,000 | M12: =SUM(tblExpenseCategory_10[thg11]) -> 4,160,000 | N12: =SUM(tblExpenseCategory_10[thg12]) -> 4,160,000 | O12: =SUM(tblExpenseCategory_10[năm]) -> 87,360,000 | P12: =SUM(tblExpenseCategory_10[TB]) -> 7,280,000
B13: =LOWER(Ngan_sach!B85) -> tiết kiệm | C13: =SUM(tblExpenseCategory_09[thg1]) -> 16,640,000 | D13: =SUM(tblExpenseCategory_09[thg2]) -> 16,640,000 | E13: =SUM(tblExpenseCategory_09[thg3]) -> 16,640,000 | F13: =SUM(tblExpenseCategory_09[thg4]) -> 16,640,000 | G13: =SUM(tblExpenseCategory_09[thg5]) -> 16,640,000 | H13: =SUM(tblExpenseCategory_09[thg6]) -> 10,400,000 | I13: =SUM(tblExpenseCategory_09[thg7]) -> 10,400,000 | J13: =SUM(tblExpenseCategory_09[thg8]) -> 10,400,000 | K13: =SUM(tblExpenseCategory_09[thg9]) -> 16,640,000 | L13: =SUM(tblExpenseCategory_09[thg10]) -> 16,640,000 | M13: =SUM(tblExpenseCategory_09[thg11]) -> 16,640,000 | N13: =SUM(tblExpenseCategory_09[thg12]) -> 16,640,000 | O13: =SUM(tblExpenseCategory_09[năm]) -> 180,960,000 | P13: =SUM(tblExpenseCategory_09[TB]) -> 15,080,000
B14: =LOWER(Ngan_sach!B78) -> từ thiện | C14: =SUM(tblExpenseCategory_08[thg1]) -> 0 | D14: =SUM(tblExpenseCategory_08[thg2]) -> 2,080,000 | E14: =SUM(tblExpenseCategory_08[thg3]) -> 2,080,000 | F14: =SUM(tblExpenseCategory_08[thg4]) -> 2,080,000 | G14: =SUM(tblExpenseCategory_08[thg5]) -> 2,080,000 | H14: =SUM(tblExpenseCategory_08[thg6]) -> 2,080,000 | I14: =SUM(tblExpenseCategory_08[thg7]) -> 2,080,000 | J14: =SUM(tblExpenseCategory_08[thg8]) -> 2,080,000 | K14: =SUM(tblExpenseCategory_08[thg9]) -> 2,080,000 | L14: =SUM(tblExpenseCategory_08[thg10]) -> 2,080,000 | M14: =SUM(tblExpenseCategory_08[thg11]) -> 2,080,000 | N14: =SUM(tblExpenseCategory_08[thg12]) -> 2,080,000 | O14: =SUM(tblExpenseCategory_08[năm]) -> 22,880,000 | P14: =SUM(tblExpenseCategory_08[TB]) -> 1,906,667
B15: =LOWER(Ngan_sach!B71) -> giáo dục | C15: =SUM(tblExpenseCategory_07[thg1]) -> 0 | D15: =SUM(tblExpenseCategory_07[thg2]) -> 0 | E15: =SUM(tblExpenseCategory_07[thg3]) -> 13,000,000 | F15: =SUM(tblExpenseCategory_07[thg4]) -> 0 | G15: =SUM(tblExpenseCategory_07[thg5]) -> 0 | H15: =SUM(tblExpenseCategory_07[thg6]) -> 0 | I15: =SUM(tblExpenseCategory_07[thg7]) -> 0 | J15: =SUM(tblExpenseCategory_07[thg8]) -> 0 | K15: =SUM(tblExpenseCategory_07[thg9]) -> 13,000,000 | L15: =SUM(tblExpenseCategory_07[thg10]) -> 0 | M15: =SUM(tblExpenseCategory_07[thg11]) -> 0 | N15: =SUM(tblExpenseCategory_07[thg12]) -> 0 | O15: =SUM(tblExpenseCategory_07[năm]) -> 26,000,000 | P15: =SUM(tblExpenseCategory_07[TB]) -> 2,166,667
B16: =LOWER(Ngan_sach!B64) -> bảo hiểm | C16: =SUM(tblExpenseCategory_06[thg1]) -> 20,280,000 | D16: =SUM(tblExpenseCategory_06[thg2]) -> 20,280,000 | E16: =SUM(tblExpenseCategory_06[thg3]) -> 20,280,000 | F16: =SUM(tblExpenseCategory_06[thg4]) -> 20,280,000 | G16: =SUM(tblExpenseCategory_06[thg5]) -> 20,280,000 | H16: =SUM(tblExpenseCategory_06[thg6]) -> 20,280,000 | I16: =SUM(tblExpenseCategory_06[thg7]) -> 20,280,000 | J16: =SUM(tblExpenseCategory_06[thg8]) -> 20,280,000 | K16: =SUM(tblExpenseCategory_06[thg9]) -> 20,280,000 | L16: =SUM(tblExpenseCategory_06[thg10]) -> 20,280,000 | M16: =SUM(tblExpenseCategory_06[thg11]) -> 20,280,000 | N16: =SUM(tblExpenseCategory_06[thg12]) -> 20,280,000 | O16: =SUM(tblExpenseCategory_06[năm]) -> 243,360,000 | P16: =SUM(tblExpenseCategory_06[TB]) -> 20,280,000
B17: =LOWER(Ngan_sach!B57) -> sức khỏe | C17: =SUM(tblExpenseCategory_05[thg1]) -> 520,000 | D17: =SUM(tblExpenseCategory_05[thg2]) -> 1,248,000 | E17: =SUM(tblExpenseCategory_05[thg3]) -> 3,640,000 | F17: =SUM(tblExpenseCategory_05[thg4]) -> 520,000 | G17: =SUM(tblExpenseCategory_05[thg5]) -> 1,248,000 | H17: =SUM(tblExpenseCategory_05[thg6]) -> 1,248,000 | I17: =SUM(tblExpenseCategory_05[thg7]) -> 1,248,000 | J17: =SUM(tblExpenseCategory_05[thg8]) -> 520,000 | K17: =SUM(tblExpenseCategory_05[thg9]) -> 3,640,000 | L17: =SUM(tblExpenseCategory_05[thg10]) -> 1,248,000 | M17: =SUM(tblExpenseCategory_05[thg11]) -> 520,000 | N17: =SUM(tblExpenseCategory_05[thg12]) -> 520,000 | O17: =SUM(tblExpenseCategory_05[năm]) -> 16,120,000 | P17: =SUM(tblExpenseCategory_05[TB]) -> 1,343,333
B18: =LOWER(Ngan_sach!B48) -> vận chuyển | C18: =SUM(tblExpenseCategory_04[thg1]) -> 23,088,000 | D18: =SUM(tblExpenseCategory_04[thg2]) -> 21,320,000 | E18: =SUM(tblExpenseCategory_04[thg3]) -> 19,240,000 | F18: =SUM(tblExpenseCategory_04[thg4]) -> 21,320,000 | G18: =SUM(tblExpenseCategory_04[thg5]) -> 19,240,400 | H18: =SUM(tblExpenseCategory_04[thg6]) -> 24,960,000 | I18: =SUM(tblExpenseCategory_04[thg7]) -> 22,880,000 | J18: =SUM(tblExpenseCategory_04[thg8]) -> 24,960,000 | K18: =SUM(tblExpenseCategory_04[thg9]) -> 23,920,000 | L18: =SUM(tblExpenseCategory_04[thg10]) -> 21,320,000 | M18: =SUM(tblExpenseCategory_04[thg11]) -> 19,240,000 | N18: =SUM(tblExpenseCategory_04[thg12]) -> 19,240,000 | O18: =SUM(tblExpenseCategory_04[năm]) -> 260,728,400 | P18: =SUM(tblExpenseCategory_04[TB]) -> 21,727,367
B19: =LOWER(Ngan_sach!B39) -> con cái | C19: =SUM(tblExpenseCategory_03[thg1]) -> 49,358,400 | D19: =SUM(tblExpenseCategory_03[thg2]) -> 10,400,000 | E19: =SUM(tblExpenseCategory_03[thg3]) -> 7,280,000 | F19: =SUM(tblExpenseCategory_03[thg4]) -> 5,200,000 | G19: =SUM(tblExpenseCategory_03[thg5]) -> 7,280,000 | H19: =SUM(tblExpenseCategory_03[thg6]) -> 9,360,000 | I19: =SUM(tblExpenseCategory_03[thg7]) -> 4,160,000 | J19: =SUM(tblExpenseCategory_03[thg8]) -> 11,336,000 | K19: =SUM(tblExpenseCategory_03[thg9]) -> 7,280,000 | L19: =SUM(tblExpenseCategory_03[thg10]) -> 7,280,000 | M19: =SUM(tblExpenseCategory_03[thg11]) -> 5,200,000 | N19: =SUM(tblExpenseCategory_03[thg12]) -> 7,280,000 | O19: =SUM(tblExpenseCategory_03[năm]) -> 131,414,400 | P19: =SUM(tblExpenseCategory_03[TB]) -> 10,951,200
B20: =LOWER(Ngan_sach!B30) -> sinh hoạt hàng ngày | C20: =SUM(tblExpenseCategory_02[thg1]) -> 16,536,000 | D20: =SUM(tblExpenseCategory_02[thg2]) -> 7,800,000 | E20: =SUM(tblExpenseCategory_02[thg3]) -> 11,440,000 | F20: =SUM(tblExpenseCategory_02[thg4]) -> 17,160,000 | G20: =SUM(tblExpenseCategory_02[thg5]) -> 10,400,000 | H20: =SUM(tblExpenseCategory_02[thg6]) -> 9,360,000 | I20: =SUM(tblExpenseCategory_02[thg7]) -> 18,200,000 | J20: =SUM(tblExpenseCategory_02[thg8]) -> 9,880,000 | K20: =SUM(tblExpenseCategory_02[thg9]) -> 8,320,000 | L20: =SUM(tblExpenseCategory_02[thg10]) -> 17,160,000 | M20: =SUM(tblExpenseCategory_02[thg11]) -> 11,960,000 | N20: =SUM(tblExpenseCategory_02[thg12]) -> 7,800,000 | O20: =SUM(tblExpenseCategory_02[năm]) -> 146,016,000 | P20: =SUM(tblExpenseCategory_02[TB]) -> 12,168,000
B21: =LOWER(Ngan_sach!B21) -> gia đình | C21: =SUM(tblExpenseCategory_01[thg1]) -> 25,126,400 | D21: =SUM(tblExpenseCategory_01[thg2]) -> 25,126,400 | E21: =SUM(tblExpenseCategory_01[thg3]) -> 25,646,400 | F21: =SUM(tblExpenseCategory_01[thg4]) -> 25,126,400 | G21: =SUM(tblExpenseCategory_01[thg5]) -> 24,086,400 | H21: =SUM(tblExpenseCategory_01[thg6]) -> 24,606,400 | I21: =SUM(tblExpenseCategory_01[thg7]) -> 26,686,400 | J21: =SUM(tblExpenseCategory_01[thg8]) -> 27,726,400 | K21: =SUM(tblExpenseCategory_01[thg9]) -> 25,126,400 | L21: =SUM(tblExpenseCategory_01[thg10]) -> 24,086,400 | M21: =SUM(tblExpenseCategory_01[thg11]) -> 25,126,400 | N21: =SUM(tblExpenseCategory_01[thg12]) -> 25,126,400 | O21: =SUM(tblExpenseCategory_01[năm]) -> 303,596,800 | P21: =SUM(tblExpenseCategory_01[TB]) -> 25,299,733
B26: Dòng tiền Tích lũy | C26: =SUM(Ngan_sach!$C$8:C$8) -> -77,251,200 | D26: =SUM(Ngan_sach!$C$8:D$8) -> 1,580,800 | E26: =SUM(Ngan_sach!$C$8:E$8) -> -38,625,600 | F26: =SUM(Ngan_sach!$C$8:F$8) -> -76,336,000 | G26: =SUM(Ngan_sach!$C$8:G$8) -> 5,449,200 | H26: =SUM(Ngan_sach!$C$8:H$8) -> -69,285,200 | I26: =SUM(Ngan_sach!$C$8:I$8) -> -157,539,600 | J26: =SUM(Ngan_sach!$C$8:J$8) -> -133,682,000 | K26: =SUM(Ngan_sach!$C$8:K$8) -> -174,928,400 | L26: =SUM(Ngan_sach!$C$8:L$8) -> -215,342,800 | M26: =SUM(Ngan_sach!$C$8:M$8) -> -133,349,200 | N26: =SUM(Ngan_sach!$C$8:N$8) -> -153,275,600 | O26: =SUM(Ngan_sach!$C$8:O$8) -> -306,551,200
B28: Dòng tiền Dương của Năm | C28: =IF(Ngan_sach!C$8<0,NA(),IF(period+2<>COLUMN(Ngan_sach!C$8),NA(),Ngan_sach!C$8)) ->  | D28: =IF(Ngan_sach!D$8<0,NA(),IF(period+2<>COLUMN(Ngan_sach!D$8),NA(),Ngan_sach!D$8)) ->  | E28: =IF(Ngan_sach!E$8<0,NA(),IF(period+2<>COLUMN(Ngan_sach!E$8),NA(),Ngan_sach!E$8)) ->  | F28: =IF(Ngan_sach!F$8<0,NA(),IF(period+2<>COLUMN(Ngan_sach!F$8),NA(),Ngan_sach!F$8)) ->  | G28: =IF(Ngan_sach!G$8<0,NA(),IF(period+2<>COLUMN(Ngan_sach!G$8),NA(),Ngan_sach!G$8)) ->  | H28: =IF(Ngan_sach!H$8<0,NA(),IF(period+2<>COLUMN(Ngan_sach!H$8),NA(),Ngan_sach!H$8)) ->  | I28: =IF(Ngan_sach!I$8<0,NA(),IF(period+2<>COLUMN(Ngan_sach!I$8),NA(),Ngan_sach!I$8)) ->  | J28: =IF(Ngan_sach!J$8<0,NA(),IF(period+2<>COLUMN(Ngan_sach!J$8),NA(),Ngan_sach!J$8)) ->  | K28: =IF(Ngan_sach!K$8<0,NA(),IF(period+2<>COLUMN(Ngan_sach!K$8),NA(),Ngan_sach!K$8)) ->  | L28: =IF(Ngan_sach!L$8<0,NA(),IF(period+2<>COLUMN(Ngan_sach!L$8),NA(),Ngan_sach!L$8)) ->  | M28: =IF(Ngan_sach!M$8<0,NA(),IF(period+2<>COLUMN(Ngan_sach!M$8),NA(),Ngan_sach!M$8)) ->  | N28: =IF(Ngan_sach!N$8<0,NA(),IF(period+2<>COLUMN(Ngan_sach!N$8),NA(),Ngan_sach!N$8)) ->  | O28: =IF(Ngan_sach!O$8<0,NA(),IF(period+2<>COLUMN(Ngan_sach!O$8),NA(),Ngan_sach!O$8)) -> 
B29: Dòng tiền Âm của Năm | C29: =IF(Ngan_sach!C$8>=0,NA(),IF(period+2<>COLUMN(Ngan_sach!C$8),NA(),Ngan_sach!C$8)) ->  | D29: =IF(Ngan_sach!D$8>=0,NA(),IF(period+2<>COLUMN(Ngan_sach!D$8),NA(),Ngan_sach!D$8)) ->  | E29: =IF(Ngan_sach!E$8>=0,NA(),IF(period+2<>COLUMN(Ngan_sach!E$8),NA(),Ngan_sach!E$8)) -> -40,206,400 | F29: =IF(Ngan_sach!F$8>=0,NA(),IF(period+2<>COLUMN(Ngan_sach!F$8),NA(),Ngan_sach!F$8)) ->  | G29: =IF(Ngan_sach!G$8>=0,NA(),IF(period+2<>COLUMN(Ngan_sach!G$8),NA(),Ngan_sach!G$8)) ->  | H29: =IF(Ngan_sach!H$8>=0,NA(),IF(period+2<>COLUMN(Ngan_sach!H$8),NA(),Ngan_sach!H$8)) ->  | I29: =IF(Ngan_sach!I$8>=0,NA(),IF(period+2<>COLUMN(Ngan_sach!I$8),NA(),Ngan_sach!I$8)) ->  | J29: =IF(Ngan_sach!J$8>=0,NA(),IF(period+2<>COLUMN(Ngan_sach!J$8),NA(),Ngan_sach!J$8)) ->  | K29: =IF(Ngan_sach!K$8>=0,NA(),IF(period+2<>COLUMN(Ngan_sach!K$8),NA(),Ngan_sach!K$8)) ->  | L29: =IF(Ngan_sach!L$8>=0,NA(),IF(period+2<>COLUMN(Ngan_sach!L$8),NA(),Ngan_sach!L$8)) ->  | M29: =IF(Ngan_sach!M$8>=0,NA(),IF(period+2<>COLUMN(Ngan_sach!M$8),NA(),Ngan_sach!M$8)) ->  | N29: =IF(Ngan_sach!N$8>=0,NA(),IF(period+2<>COLUMN(Ngan_sach!N$8),NA(),Ngan_sach!N$8)) ->  | O29: =IF(Ngan_sach!O$8>=0,NA(),IF(period+2<>COLUMN(Ngan_sach!O$8),NA(),Ngan_sach!O$8)) -> 
B37: =LOWER(display_long_period) -> thg3
B38: =display_long_period & "Thu nhập" -> thg3Thu nhập | C38: =INDEX(Ngan_sach!$C$6:$P$6,,period) -> ₫83,200,000
B39: =display_long_period & " Chi phí: " & TEXT(INDEX(Ngan_sach!$C$7:$P$7,,period),"$#,##0") -> thg3 Chi phí: $123406400,0 | C39: =INDEX(Ngan_sach!$C$7:$P$7,,period) -> ₫123,406,400
B40: =display_long_period & " Chi tiết " -> thg3 Chi tiết | C40: =ABS(INDEX(Ngan_sach!$C$8:$P$8,,period)) -> ₫40,206,400 | D40: =REPT("-",INDEX(Ngan_sach!$C$8:$P$8,,period)<0) -> -
